bitfinex-derivatives/quotes_BTCF0:USTF0_20251128
["timestamp","ask_amount","ask_price","bid_price","bid_amount"]
[1764316464682,0.48601484,90964.0,90963.0,0.45989049]
[1764316465485,0.48601484,90964.0,90963.0,0.38126409]
[1764316467285,0.48601484,90964.0,90963.0,0.41514409]
[1764316467586,0.88701114,90964.0,90963.0,0.38126409]
[1764316469779,0.88701114,90964.0,90963.0,0.39226049]
[1764316472487,0.87601484,90964.0,90963.0,0.39226049]
[1764316473982,1.26601484,90964.0,90963.0,0.02046409]
[1764316475187,1.00601484,90964.0,90963.0,0.02046409]
[1764316475688,1.24601484,90964.0,90963.0,0.02046409]
[1764316477089,1.02601484,90964.0,90963.0,0.02046409]
[1764316477289,1.28601484,90964.0,90963.0,0.02046409]
[1764316480290,0.87601484,90964.0,90963.0,0.02046409]
[1764316483794,0.48601484,90964.0,90963.0,0.02046409]
[1764316486092,0.48601484,90964.0,90963.0,0.03146049]
[1764316487497,0.48601484,90964.0,90963.0,0.02046409]
[1764316489694,0.48601484,90964.0,90963.0,0.05283409]
[1764316490404,0.48601484,90964.0,90963.0,0.02046409]
[1764316490906,0.48601484,90964.0,90963.0,0.09940049]
[1764316496105,0.50730484,90964.0,90963.0,0.09940049]
[1764316498402,0.85730484,90964.0,90963.0,0.09940049]
[1764316499402,0.67730484,90964.0,90963.0,0.09940049]
[1764316500610,0.48601484,90964.0,90963.0,0.09940049]
[1764316501509,0.0633,90975.0,90974.0,0.0109951]
[1764316501713,0.4733,90975.0,90974.0,0.4370951]
[1764316502211,0.4733,90975.0,90974.0,0.53597175]
[1764316502412,0.4733,90975.0,90974.0,0.4370951]
[1764316502601,0.4743,90975.0,90974.0,0.4370951]
[1764316503210,0.4763,90975.0,90974.0,0.4370951]
[1764316503906,0.4753,90975.0,90974.0,0.4370951]
[1764316504107,0.4733,90975.0,90974.0,0.4370951]
[1764316504416,0.4733,90975.0,90974.0,0.4380951]
[1764316505308,0.4733,90975.0,90974.0,0.4271]
[1764316506414,0.4733,90975.0,90974.0,0.4261]
[1764316506617,0.4733,90975.0,90974.0,0.44577652]
[1764316507412,0.8833,90975.0,90974.0,0.38047652]
[1764316507612,0.8833,90975.0,90961.0,0.09887665]
[1764316507613,0.0633,90962.0,90961.0,0.09887665]
[1764316507813,0.8542965,90962.0,90961.0,0.12957665]
[1764316508008,0.8542965,90962.0,90961.0,0.0653]
[1764316509522,0.8542965,90962.0,90961.0,0.003]
[1764316510007,0.4442965,90962.0,90961.0,0.003]
[1764316514616,0.4442965,90962.0,90961.0,0.0337]
[1764316515218,0.4442965,90962.0,90961.0,0.003]
[1764316526630,0.4333,90962.0,90961.0,0.06139]
[1764316528328,0.4333,90962.0,90961.0,0.0723866]
[1764316536234,0.4333,90962.0,90961.0,0.06139]
[1764316536441,0.4442965,90962.0,90961.0,0.03252]
[1764316536832,0.4442965,90962.0,90961.0,0.0435166]
[1764316537036,0.4333,90962.0,90961.0,0.0139966]
[1764316537239,0.4333,90962.0,90961.0,0.0410466]
[1764316537733,0.4333,90962.0,90961.0,0.0139966]
[1764316538133,0.4333,90962.0,90961.0,0.0702066]
[1764316538348,0.4442965,90962.0,90961.0,0.0702066]
[1764316538547,0.4442965,90962.0,90961.0,0.0410466]
[1764316538849,0.4442965,90962.0,90961.0,0.0189966]
[1764316539241,0.4442965,90962.0,90961.0,0.008]
[1764316546455,0.0510391,90941.0,90937.0,0.09887665]
[1764316546653,0.04004,90927.0,90926.0,0.00459732]
[1764316546861,0.4510408,90927.0,90926.0,0.03164732]
[1764316547151,0.4510408,90927.0,90926.0,0.00459732]
[1764316547355,0.4510408,90927.0,90926.0,0.02402023]
[1764316548258,0.4520408,90927.0,90926.0,0.03402023]
[1764316549060,0.4520408,90927.0,90926.0,0.03502023]
[1764316549759,0.44104,90927.0,90926.0,0.03502023]
[1764316552156,0.44104,90927.0,90926.0,0.09123023]
[1764316556863,0.42102,90927.0,90926.0,0.09123023]
[1764316557063,0.401,90927.0,90926.0,0.09123023]
[1764316557864,0.42102,90927.0,90926.0,0.09123023]
[1764316559667,0.44104,90927.0,90926.0,0.09123023]
[1764316559870,0.42102,90927.0,90926.0,0.09123023]
[1764316560863,0.401,90927.0,90926.0,0.09123023]
[1764316562170,0.001,90927.0,90926.0,0.09123023]
[1764316563260,0.00016495,90936.0,90927.0,0.0110008]
[1764316563464,0.43658495,90936.0,90935.0,0.07305]
[1764316564670,0.43658495,90936.0,90935.0,0.02741]
[1764316564868,0.43758495,90936.0,90935.0,0.05632]
[1764316565269,0.43758495,90936.0,90935.0,0.05732]
[1764316565972,0.43758495,90936.0,90935.0,0.001]
[1764316566172,0.43658495,90936.0,90935.0,0.001]
[1764316566470,0.43758495,90936.0,90935.0,0.03441]
[1764316566965,0.43758495,90936.0,90935.0,0.06332]
[1764316567673,0.43758495,90936.0,90935.0,0.007]
[1764316573168,0.43758495,90936.0,90935.0,0.03441]
[1764316573372,0.43758495,90936.0,90935.0,0.007]
[1764316574169,0.44858465,90936.0,90935.0,0.007]
[1764316579877,0.44858465,90936.0,90935.0,0.03576]
[1764316580076,0.44858465,90936.0,90935.0,0.08015]
[1764316583878,0.44858465,90936.0,90935.0,0.007]
[1764316590380,0.44858465,90936.0,90935.0,0.06277]
[1764316590581,0.44858465,90936.0,90935.0,0.08015]
[1764316591174,0.44858465,90936.0,90935.0,0.06277]
[1764316592382,0.42537465,90936.0,90935.0,0.08027]
[1764316592688,0.41437495,90936.0,90935.0,0.08027]
[1764316592890,0.42902495,90936.0,90935.0,0.08027]
[1764316604699,0.42902495,90936.0,90935.0,0.007]
[1764316606405,0.42902495,90936.0,90935.0,0.03418]
[1764316607104,0.42902495,90936.0,90935.0,0.06232]
[1764316607498,0.42902495,90936.0,90935.0,0.007]
[1764316608207,0.42902495,90936.0,90935.0,0.03418]
[1764316609802,0.42902495,90936.0,90935.0,0.007]
[1764316611014,0.42902495,90936.0,90935.0,0.03418]
[1764316615813,0.42902495,90936.0,90935.0,0.007]
[1764316620916,0.42902495,90936.0,90935.0,0.00583516]
[1764316621118,0.42902495,90936.0,90926.0,0.02402023]
[1764316621119,0.0110008,90929.0,90926.0,0.02402023]
[1764316621422,0.3901,90927.0,90926.0,0.02402023]
[1764316621619,0.8401,90927.0,90926.0,0.02402023]
[1764316622522,0.8401,90927.0,90926.0,0.02502023]
[1764316623418,0.8401,90927.0,90926.0,0.03202023]
[1764316623820,0.8401,90927.0,90926.0,0.02502023]
[1764316624019,0.8411,90927.0,90926.0,0.03202023]
[1764316625824,1.6611,90927.0,90926.0,0.03202023]
[1764316626325,1.6611,90927.0,90926.0,0.05516023]
[1764316626917,1.6601,90927.0,90926.0,0.04816023]
[1764316627117,1.6611,90927.0,90926.0,0.05316023]
[1764316628423,1.6611,90927.0,90926.0,0.05216023]
[1764316628620,1.6611,90927.0,90926.0,0.07722023]
[1764316630425,1.3811,90927.0,90926.0,0.05216023]
[1764316630628,1.3811,90927.0,90926.0,0.07722023]
[1764316632029,1.6211,90927.0,90926.0,0.07722023]
[1764316632328,1.3811,90927.0,90926.0,0.07722023]
[1764316633222,1.2711,90927.0,90926.0,0.07722023]
[1764316635522,1.3711,90927.0,90926.0,0.07722023]
[1764316636126,1.3821008,90927.0,90926.0,0.08822113]
[1764316638323,1.3821008,90927.0,90926.0,0.07722023]
[1764316638533,1.8121008,90927.0,90926.0,0.02902023]
[1764316639025,1.8121008,90927.0,90926.0,0.05220023]
[1764316639727,1.8121008,90927.0,90926.0,0.02902023]
[1764316640322,1.3821008,90927.0,90926.0,0.07549023]
[1764316641724,1.3711,90927.0,90926.0,0.07549023]
[1764316645822,1.0103,90927.0,90926.0,0.07549023]
[1764316647826,0.66565,90927.0,90926.0,0.07549023]
[1764316648033,0.651,90927.0,90926.0,0.07549023]
[1764316648332,0.931,90927.0,90926.0,0.07549023]
[1764316650335,0.93559,90927.0,90926.0,0.07549023]
[1764316653239,0.94018,90927.0,90926.0,0.07549023]
[1764316653441,0.9511808,90927.0,90926.0,0.07549023]
[1764316654336,1.1011808,90927.0,90926.0,0.02902023]
[1764316654637,0.9511808,90927.0,90926.0,0.05231023]
[1764316655539,0.9511808,90927.0,90926.0,0.07624023]
[1764316657841,0.9511808,90927.0,90926.0,0.02902023]
[1764316658641,0.9511808,90927.0,90926.0,0.05231023]
[1764316659545,0.9511808,90927.0,90926.0,0.07624023]
[1764316659835,1.1245408,90927.0,90926.0,0.07624023]
[1764316660032,1.5745408,90927.0,90926.0,0.02902023]
[1764316660432,1.2645408,90927.0,90926.0,0.02902023]
[1764316660633,1.9153408,90927.0,90926.0,0.02902023]
[1764316663145,1.8753408,90927.0,90926.0,0.02902023]
[1764316667640,1.8753408,90927.0,90926.0,0.05231023]
[1764316667840,1.8753408,90927.0,90926.0,0.02902023]
[1764316674144,1.8743408,90927.0,90926.0,0.02602023]
[1764316674348,1.8753408,90927.0,90926.0,0.02602023]
[1764316680358,1.7019808,90927.0,90926.0,0.07324023]
[1764316680650,1.8853408,90927.0,90926.0,0.07324023]
[1764316680850,1.4853408,90927.0,90926.0,0.07324023]
[1764316681056,1.6153408,90927.0,90926.0,0.07324023]
[1764316681558,1.8753408,90927.0,90926.0,0.07324023]
[1764316682249,1.4853408,90927.0,90926.0,0.07324023]
[1764316682449,1.8553408,90927.0,90926.0,0.07324023]
[1764316687754,1.6819808,90927.0,90926.0,0.07324023]
[1764316687954,1.8553408,90927.0,90926.0,0.07324023]
[1764316688960,1.8553408,90927.0,90926.0,0.07824023]
[1764316690259,1.8553408,90927.0,90926.0,0.03102023]
[1764316690661,1.8553408,90927.0,90926.0,0.05261023]
[1764316691162,1.8553408,90927.0,90926.0,0.07493023]
[1764316691967,1.8553408,90927.0,90926.0,0.05261023]
[1764316692970,1.8553408,90927.0,90926.0,0.03102023]
[1764316693269,1.8553408,90927.0,90926.0,0.07446023]
[1764316693567,1.8553408,90927.0,90926.0,0.05261023]
[1764316694368,1.8553408,90927.0,90926.0,0.07446023]
[1764316694766,1.4807508,90927.0,90926.0,0.07446023]
[1764316695368,0.9465908,90927.0,90926.0,0.08546113]
[1764316695664,1.1199508,90927.0,90926.0,0.07446023]
[1764316695970,1.1199508,90927.0,90926.0,0.08546113]
[1764316699672,0.93559,90927.0,90926.0,0.08546113]
[1764316699865,1.10895,90927.0,90926.0,0.08546113]
[1764316700471,0.72895,90927.0,90926.0,0.08546113]
[1764316700872,0.881,90927.0,90926.0,0.08546113]
[1764316701767,0.88322,90927.0,90926.0,0.08546113]
[1764316701964,0.88544,90927.0,90926.0,0.08546113]
[1764316706078,0.88322,90927.0,90926.0,0.08546113]
[1764316706280,0.881,90927.0,90926.0,0.08546113]
[1764316706466,0.88544,90927.0,90926.0,0.08546113]
[1764316707074,0.88544,90927.0,90926.0,0.07446023]
[1764316714195,1.30544,90927.0,90926.0,0.03102023]
[1764316715082,0.36524,90965.0,90964.0,0.04327]
[1764316715290,0.36524,90965.0,90955.0,0.01361]
[1764316715291,0.00444,90956.0,90955.0,0.05688]
[1764316715589,0.82444,90956.0,90955.0,0.05688]
[1764316716383,0.83044,90956.0,90955.0,0.05788]
[1764316717789,0.83144,90956.0,90955.0,0.05788]
[1764316717991,0.827,90956.0,90955.0,0.05788]
[1764316718291,0.3918313,90956.0,90955.0,0.05788]
[1764316718594,0.00460495,90965.0,90964.0,0.0542663]
[1764316718791,0.83460495,90965.0,90964.0,0.4150663]
[1764316718993,0.45016495,90965.0,90964.0,0.4150663]
[1764316719399,0.44088933,90965.0,90964.0,0.4150663]
[1764316719600,0.17336,90980.0,90979.0,0.0542645]
[1764316719601,0.1778,90980.0,90979.0,0.0542645]
[1764316719798,0.9878,90980.0,90979.0,0.0542645]
[1764316720097,0.81444,90980.0,90979.0,0.0542645]
[1764316720694,0.81222,90980.0,90979.0,0.0542645]
[1764316721095,0.81444,90980.0,90979.0,0.0542645]
[1764316721498,0.81544,90980.0,90979.0,0.0542645]
[1764316721696,0.82144,90980.0,90979.0,0.0552645]
[1764316722100,0.82144,90980.0,90979.0,0.04427]
[1764316724798,0.82144,90980.0,90979.0,0.06394437]
[1764316726796,1.26144,90980.0,90979.0,0.04201437]
[1764316726997,1.26144,90980.0,90979.0,0.06394437]
[1764316728890,1.26144,90980.0,90979.0,0.04201437]
[1764316729092,1.26144,90980.0,90979.0,0.02067437]
[1764316732404,1.26144,90980.0,90970.0,0.00016495]
[1764316732405,0.0154354,90971.0,90970.0,0.00016495]
[1764316732610,1.3587554,90971.0,90970.0,0.00016495]
[1764316733106,1.3587554,90971.0,90962.0,0.3608]
[1764316733107,0.0109977,90952.0,90951.0,0.40407]
[1764316733310,0.7909977,90952.0,90951.0,0.40407]
[1764316734914,0.7919977,90952.0,90951.0,0.40607]
[1764316735511,0.7929977,90952.0,90951.0,0.40507]
[1764316735711,0.7929977,90952.0,90951.0,0.42305091]
[1764316735913,0.782,90952.0,90951.0,0.42305091]
[1764316736097,0.00283505,90952.0,90951.0,0.42305091]
[1764316736503,0.33283505,90952.0,90951.0,0.42305091]
[1764316736708,0.62183505,90952.0,90951.0,0.42305091]
[1764316736909,0.62183505,90952.0,90951.0,0.42205091]
[1764316736910,0.621,90952.0,90951.0,0.42205091]
[1764316737112,0.623,90952.0,90951.0,0.42305091]
[1764316737512,0.62,90952.0,90951.0,0.42205091]
[1764316737713,0.621,90952.0,90951.0,0.42405091]
[1764316738198,0.621,90952.0,90951.0,0.42305091]
[1764316738402,0.331,90952.0,90951.0,0.42305091]
[1764316740312,0.33,90952.0,90951.0,0.42305091]
[1764316741422,0.428,90952.0,90951.0,0.42205091]
[1764316741914,0.427,90952.0,90951.0,0.42205091]
[1764316742112,0.428,90952.0,90951.0,0.42205091]
[1764316743101,0.429,90952.0,90951.0,0.42205091]
[1764316744619,0.00016495,90961.0,90960.0,0.1220168]
[1764316744810,0.00016495,90961.0,90960.0,0.8436168]
[1764316745609,0.00116495,90961.0,90960.0,0.8436168]
[1764316746722,0.00216495,90961.0,90960.0,0.8436168]
[1764316747618,0.00116495,90961.0,90960.0,0.8436168]
[1764316747811,0.00216495,90961.0,90960.0,0.8486168]
[1764316748420,0.00116495,90961.0,90960.0,0.8486168]
[1764316748619,0.11,90984.0,90983.0,0.108354]
[1764316748918,0.537,90984.0,90983.0,0.108354]
[1764316750318,0.00016495,90993.0,90992.0,0.1083529]
[1764316750319,0.07463495,90993.0,90992.0,0.1083529]
[1764316750625,0.39016495,90993.0,90992.0,0.4691529]
[1764316751424,0.39316495,90993.0,90992.0,0.4691529]
[1764316751620,0.003,90993.0,90992.0,0.4691529]
[1764316751820,0.103,90993.0,90992.0,0.4691529]
[1764316752321,0.393,90993.0,90992.0,0.4691529]
[1764316753725,0.58749,90993.0,90992.0,0.3608]
[1764316754821,0.58749,90993.0,90992.0,0.43437]
[1764316755020,0.58749,90993.0,90992.0,0.50586]
[1764316758024,0.293,90993.0,90992.0,0.50586]
[1764316758225,0.44375,90993.0,90992.0,0.72477]
[1764316758429,0.44375,90993.0,90992.0,0.6797]
[1764316758929,0.44075,90993.0,90992.0,0.6797]
[1764316759121,0.44075,90993.0,90992.0,0.6807]
[1764316759726,0.44075,90993.0,90992.0,0.6837]
[1764316760024,0.44175,90993.0,90992.0,0.6837]
[1764316760531,0.36699,90993.0,90992.0,0.72877]
[1764316762031,0.44075,90993.0,90992.0,0.72477]
[1764316762220,0.44175,90993.0,90992.0,0.72777]
[1764316762417,0.44175,90993.0,90992.0,0.6827]
[1764316762735,0.44175,90993.0,90992.0,0.6837]
[1764316763227,0.44175,90993.0,90992.0,0.6797]
[1764316763428,0.44175,90993.0,90992.0,0.8337]
[1764316764528,0.48549,90993.0,90992.0,0.5148]
[1764316765333,0.48449,90993.0,90992.0,0.5108]
[1764316765522,0.48549,90993.0,90992.0,0.5148]
[1764316765924,0.48449,90993.0,90992.0,0.5108]
[1764316766133,0.48449,90993.0,90992.0,0.5148]
[1764316766134,0.48549,90993.0,90992.0,0.5148]
[1764316766637,0.48449,90993.0,90992.0,0.5118]
[1764316767035,0.48549,90993.0,90992.0,0.5118]
[1764316769129,0.48549,90993.0,90992.0,0.5108]
[1764316769331,0.48649,90993.0,90992.0,0.5108]
[1764316769732,0.48449,90993.0,90992.0,0.5108]
[1764316769933,0.48649,90993.0,90992.0,0.5108]
[1764316770130,0.48649,90993.0,90983.0,0.01789197]
[1764316770131,0.0853539,90984.0,90983.0,0.01789197]
[1764316770434,0.0853548,90976.0,90975.0,0.0845649]
[1764316770738,0.4753548,90976.0,90975.0,0.1560549]
[1764316771639,0.4753548,90976.0,90974.0,0.00016495]
[1764316771640,0.12788,90975.0,90974.0,0.00016495]
[1764316771842,0.52788,90975.0,90974.0,0.00016495]
[1764316772341,0.52788,90975.0,90965.0,0.12806]
[1764316772342,0.12788,90966.0,90965.0,0.12806]
[1764316772535,0.12788,90961.0,90960.0,0.15573]
[1764316772843,0.12788,90959.0,90956.0,0.0109972]
[1764316773031,0.54788,90959.0,90958.0,0.2008]
[1764316773939,0.54888,90959.0,90958.0,0.2008]
[1764316774333,0.12788,90957.0,90956.0,0.0109972]
[1764316774533,0.54788,90957.0,90956.0,0.0109972]
[1764316774930,0.54788,90957.0,90949.0,0.36096485]
[1764316774931,0.12788,90955.0,90949.0,0.00016485]
[1764316775138,0.51788,90955.0,90949.0,0.01116295]
[1764316775738,0.51788,90955.0,90954.0,0.53430262]
[1764316777533,0.51888,90955.0,90954.0,0.53530262]
[1764316777840,0.51988,90955.0,90954.0,0.53530262]
[1764316778044,0.51888,90955.0,90954.0,0.53530262]
[1764316778544,0.51888,90955.0,90954.0,0.53430262]
[1764316778745,0.51988,90955.0,90954.0,0.53530262]
[1764316779239,0.51788,90955.0,90954.0,0.53530262]
[1764316780145,0.51888,90955.0,90954.0,0.53530262]
[1764316780648,0.51888,90955.0,90954.0,0.53430262]
[1764316780843,0.51888,90955.0,90954.0,0.53530262]
[1764316781244,0.51888,90955.0,90954.0,0.57745262]
[1764316781548,0.51888,90955.0,90954.0,0.57845262]
[1764316782940,0.51788,90955.0,90954.0,0.57845262]
[1764316783244,0.39,90955.0,90954.0,0.57845262]
[1764316783938,0.39,90955.0,90954.0,0.57745262]
[1764316784131,0.39,90955.0,90954.0,0.57845262]
[1764316784536,0.391,90955.0,90954.0,0.58145262]
[1764316787353,0.39,90955.0,90954.0,0.57745262]
[1764316787655,0.391,90955.0,90954.0,0.58045262]
[1764316787949,0.39,90955.0,90954.0,0.57745262]
[1764316788151,0.391,90955.0,90954.0,0.58145262]
[1764316788549,0.39,90955.0,90954.0,0.57745262]
[1764316788858,0.391,90955.0,90954.0,0.58045262]
[1764316791457,0.391,90955.0,90954.0,0.58145262]
[1764316792355,0.391,90955.0,90954.0,0.59245012]
[1764316793362,0.391,90955.0,90954.0,0.59345012]
[1764316793858,0.391,90955.0,90954.0,0.58845012]
[1764316793859,0.39,90955.0,90954.0,0.58845012]
[1764316794061,0.391,90955.0,90954.0,0.59345012]
[1764316794949,0.39,90955.0,90954.0,0.58845012]
[1764316795154,0.391,90955.0,90954.0,0.59345012]
[1764316796954,0.391,90955.0,90954.0,0.59245012]
[1764316798159,0.51888,90955.0,90954.0,0.59245012]
[1764316799857,0.51888,90955.0,90954.0,0.58145262]
[1764316800156,0.51788,90955.0,90954.0,0.58045262]
[1764316800360,0.51888,90955.0,90954.0,0.58045262]
[1764316800863,0.51888,90955.0,90954.0,0.57945262]
[1764316801062,0.51888,90955.0,90954.0,0.56168]
[1764316802057,0.51888,90955.0,90954.0,0.3628]
[1764316802470,0.51788,90955.0,90954.0,0.3608]
[1764316802967,0.45394,90955.0,90954.0,0.3608]
[1764316803358,0.49279,90955.0,90954.0,0.43357]
[1764316803669,0.49279,90955.0,90954.0,0.56514]
[1764316804368,0.391,90955.0,90954.0,0.56514]
[1764316805364,0.42985,90955.0,90954.0,0.56514]
[1764316805564,0.42885,90955.0,90954.0,0.56514]
[1764316805862,0.391,90955.0,90954.0,0.56714]
[1764316806059,0.411,90955.0,90954.0,0.56714]
[1764316807363,0.051,90955.0,90954.0,0.56714]
[1764316807565,0.401,90955.0,90954.0,0.665968]
[1764316807767,0.091,90955.0,90954.0,0.665968]
[1764316808160,0.001,90955.0,90954.0,0.665968]
[1764316808361,0.361,90955.0,90954.0,0.665968]
[1764316809566,0.001,90955.0,90954.0,0.665968]
[1764316809770,0.421,90955.0,90954.0,0.665968]
[1764316810262,0.421,90955.0,90954.0,0.56714]
[1764316811169,0.121,90955.0,90954.0,0.56714]
[1764316811561,0.001,90955.0,90954.0,0.56714]
[1764316812072,0.00016485,90966.0,90965.0,0.1670662]
[1764316812273,0.49986485,90966.0,90965.0,0.5278662]
[1764316812459,0.46001485,90966.0,90965.0,0.5278662]
[1764316812664,0.15016485,90966.0,90965.0,0.5278662]
[1764316812866,0.00016485,90966.0,90965.0,0.5278662]
[1764316813368,0.0797,90983.0,90982.0,0.1670641]
[1764316813568,0.3597,90983.0,90982.0,0.1670641]
[1764316813969,0.31985,90983.0,90982.0,0.1670641]
[1764316814168,0.28,90983.0,90982.0,0.1670641]
[1764316815075,0.13960214,90983.0,90982.0,0.1670641]
[1764316815368,0.00016485,90992.0,90980.0,0.3608]
[1764316815369,0.05986485,90992.0,90991.0,0.14126]
[1764316815564,0.0706942,90981.0,90980.0,0.3608]
[1764316815766,0.4197,90981.0,90980.0,0.43063]
[1764316815966,0.4197,90981.0,90980.0,0.50206]
[1764316816975,0.4197,90981.0,90980.0,0.50306]
[1764316818176,0.36,90981.0,90980.0,0.50306]
[1764316818478,0.38985,90981.0,90980.0,0.50306]
[1764316818672,0.4197,90981.0,90980.0,0.50306]
[1764316818874,0.36,90981.0,90980.0,0.50306]
[1764316819373,0.38985,90981.0,90980.0,0.50306]
[1764316820270,0.39085,90981.0,90980.0,0.50406]
[1764316821175,0.4207,90981.0,90980.0,0.50406]
[1764316822570,0.38985,90981.0,90980.0,0.50306]
[1764316822774,0.36,90981.0,90980.0,0.50306]
[1764316822970,0.36,90981.0,90980.0,0.50406]
[1764316823175,0.071,90981.0,90980.0,0.50406]
[1764316823369,0.451,90981.0,90980.0,0.50406]
[1764316823572,0.45,90981.0,90980.0,0.50306]
[1764316825065,0.451,90981.0,90980.0,0.50406]
[1764316825665,0.451,90981.0,90980.0,0.50606]
[1764316825870,0.441,90981.0,90980.0,0.50606]
[1764316826468,0.081,90981.0,90980.0,0.50606]
[1764316826771,0.381,90981.0,90980.0,0.91606]
[1764316827374,0.381,90981.0,90980.0,0.55606]
[1764316827579,0.381,90981.0,90980.0,0.50606]
[1764316828378,0.071,90981.0,90980.0,0.50606]
[1764316828684,0.47085,90981.0,90980.0,0.67962]
[1764316829580,0.5007,90981.0,90980.0,0.59549488]
[1764316829779,0.5007,90981.0,90980.0,0.76905488]
[1764316830188,0.5007,90981.0,90980.0,0.50606]
[1764316830380,0.5007,90981.0,90980.0,0.67962]
[1764316830683,0.47085,90981.0,90980.0,0.67962]
[1764316831082,0.5007,90981.0,90980.0,0.67962]
[1764316831283,0.5007,90981.0,90980.0,0.50606]
[1764316831684,0.441,90981.0,90980.0,0.50606]
[1764316833178,0.43139776,90981.0,90980.0,0.85606]
[1764316834282,0.43139776,90981.0,90980.0,0.87443036]
[1764316834885,0.31632776,90981.0,90980.0,0.87443036]
[1764316836581,0.00016485,90992.0,90991.0,0.14619]
[1764316836886,0.23016485,90992.0,90991.0,0.68055]
[1764316837085,0.23016485,90992.0,90991.0,0.691543]
[1764316837986,0.23016485,90992.0,90991.0,0.692543]
[1764316838288,0.00016485,90992.0,90991.0,1.072543]
[1764316839188,0.06971485,90992.0,90991.0,0.693503]
[1764316839491,0.00016485,90992.0,90991.0,0.693503]
[1764316840286,0.14537485,90992.0,90991.0,0.519983]
[1764316840486,0.58537485,90992.0,90991.0,0.693503]
[1764316840987,0.58537485,90992.0,90991.0,0.68255]
[1764316842086,0.58537485,90992.0,90991.0,0.68055]
[1764316842286,0.58537485,90992.0,90991.0,0.68255]
[1764316842794,0.58537485,90992.0,90991.0,0.50899]
[1764316843290,0.58537485,90992.0,90991.0,0.3628]
[1764316843689,0.58537485,90992.0,90991.0,0.37870678]
[1764316843882,0.58537485,90992.0,90991.0,0.37970678]
[1764316844285,0.58537485,90992.0,90991.0,0.37870678]
[1764316844894,0.58537485,90992.0,90991.0,0.52489678]
[1764316845684,0.58537485,90992.0,90991.0,0.52589678]
[1764316846984,0.58537485,90992.0,90991.0,0.52489678]
[1764316847184,0.58537485,90992.0,90991.0,0.52589678]
[1764316847590,0.58537485,90992.0,90991.0,0.52489678]
[1764316847791,0.58537485,90992.0,90991.0,0.52589678]
[1764316848793,0.50971485,90992.0,90991.0,0.52589678]
[1764316848986,0.00016485,90992.0,90991.0,0.52589678]
[1764316849183,0.44016485,90992.0,90991.0,0.52589678]
[1764316850295,0.50971485,90992.0,90991.0,0.52589678]
[1764316851688,0.44016485,90992.0,90991.0,0.52589678]
[1764316851887,0.00016485,90992.0,90991.0,0.52589678]
[1764316852286,0.14537485,90992.0,90991.0,0.52589678]
[1764316852488,0.53537485,90992.0,90991.0,0.69941678]
[1764316852690,0.53537485,90992.0,90991.0,0.52589678]
[1764316852890,0.53537485,90992.0,90991.0,0.69945678]
[1764316855096,0.53537485,90992.0,90991.0,0.52589678]
[1764316855287,0.53537485,90992.0,90991.0,0.69945678]
[1764316860698,0.39016485,90992.0,90991.0,0.69945678]
[1764316860995,0.39016485,90992.0,90991.0,0.52589678]
[1764316861202,0.39016485,90992.0,90991.0,0.69941678]
[1764316861698,0.00016485,90992.0,90991.0,0.69941678]
[1764316862297,0.00016485,90992.0,90991.0,0.79803851]
[1764316862495,4.85e-06,90992.0,90991.0,0.69941678]
[1764316863294,4.85e-06,90992.0,90991.0,0.52589678]
[1764316863704,4.85e-06,90992.0,90991.0,0.69941678]
[1764316870306,0.13814485,90992.0,90991.0,0.52589678]
[1764316870512,0.13814485,90992.0,90991.0,0.69937678]
[1764316871411,4.85e-06,90992.0,90991.0,0.55318678]
[1764316877509,4.85e-06,90992.0,90991.0,0.55314678]
[1764316889514,4.85e-06,90992.0,90991.0,0.69150598]
[1764316890014,4.85e-06,90992.0,90991.0,0.55314678]
[1764316890721,4.85e-06,90992.0,90991.0,0.55310678]
[1764316891326,4.85e-06,90992.0,90991.0,0.55410678]
[1764316894417,0.00027471,91006.0,91005.0,0.1435413]
[1764316894617,0.00027471,91006.0,91005.0,0.77657504]
[1764316894821,0.010988,91033.0,91032.0,0.06348]
[1764316895026,0.559608,91033.0,91032.0,0.06348]
[1764316895322,0.12862,91029.0,91028.0,0.42428]
[1764316895530,0.54862,91029.0,91028.0,0.49335]
[1764316896618,0.47999,91029.0,91028.0,0.49335]
[1764316897319,0.54862,91029.0,91028.0,0.49335]
[1764316897524,0.54862,91029.0,91028.0,0.66779]
[1764316898226,0.54862,91029.0,91028.0,0.66679]
[1764316898829,0.54862,91029.0,91028.0,0.66779]
[1764316899427,0.54862,91029.0,91028.0,0.49435]
[1764316899633,0.54862,91029.0,91028.0,0.66779]
[1764316900727,0.54862,91029.0,91028.0,0.68319163]
[1764316900932,0.54862,91029.0,91028.0,0.68419163]
[1764316901331,0.54862,91029.0,91028.0,0.68319163]
[1764316901535,0.54862,91029.0,91028.0,0.68419163]
[1764316901930,0.54862,91029.0,91028.0,0.68319163]
[1764316902238,0.54862,91029.0,91028.0,0.68419163]
[1764316904845,0.54862,91029.0,91028.0,0.51075163]
[1764316905041,0.54862,91029.0,91028.0,0.68415163]
[1764316905242,0.54862,91029.0,91028.0,0.68315163]
[1764316905442,0.54862,91029.0,91028.0,0.68415163]
[1764316905841,0.12862,91029.0,91028.0,0.68415163]
[1764316907646,0.12862,91029.0,91028.0,0.68515163]
[1764316908145,0.12862,91029.0,91028.0,0.68315163]
[1764316908347,0.12862,91029.0,91028.0,0.68415163]
[1764316909942,0.12862,91029.0,91028.0,0.68315163]
[1764316910150,0.12862,91029.0,91028.0,0.68415163]
[1764316910648,0.12862,91029.0,91020.0,0.39832]
[1764316910649,0.44,91029.0,91006.0,0.0988264]
[1764316910837,0.12862,90999.0,90998.0,0.49335]
[1764316911037,0.03279,91020.0,91000.0,0.04026]
[1764316911038,0.0109902,91014.0,91000.0,0.04026]
[1764316911242,0.1396102,91014.0,91013.0,0.06348]
[1764316911644,0.12862,91014.0,91013.0,0.13255]
[1764316912344,0.1396102,91014.0,91013.0,0.13255]
[1764316913054,0.12862,91014.0,91013.0,0.13255]
[1764316913553,0.12962,91014.0,91013.0,0.13255]
[1764316914254,0.12962,91014.0,91013.0,0.30603]
[1764316919260,0.12962,91014.0,91013.0,0.32313963]
[1764316921053,0.12862,91014.0,91013.0,0.32313963]
[1764316922256,0.00016485,91023.0,91022.0,0.12606]